bitfinex/quotes_ETHUSD_20260129
["timestamp","ask_amount","ask_price","bid_price","bid_amount"]
[1769699953485,0.89623345,2823.0,2820.8,2.14670861]
[1769699953809,0.001,2823.3,2821.0,12.81708607]
[1769699954011,0.88650007,2823.3,2821.0,12.80644287]
[1769699954327,0.88650007,2823.3,2821.1,0.88617914]
[1769699954328,0.89714327,2823.3,2821.1,0.88617914]
[1769699954476,0.0106432,2823.1,2821.1,0.88617914]
[1769699955093,0.0106432,2822.9,2821.1,0.88617914]
[1769699955495,0.001,2823.3,2821.1,0.88617914]
[1769699955696,0.001,2823.3,2821.5,0.0106432]
[1769699955899,0.001,2823.3,2821.7,0.0106432]
[1769699956109,0.001,2823.3,2821.7,12.80644287]
[1769699956413,0.001,2823.3,2821.9,0.88592792]
[1769699956708,0.001,2823.3,2822.0,0.743]
[1769699957710,3.53990662,2825.0,2822.0,0.743]
[1769699957711,13.513936,2826.2,2822.3,12.81708607]
[1769699957896,0.0106432,2825.2,2822.7,12.80644287]
[1769699958214,0.8851124,2824.5,2821.9,0.88592792]
[1769699958375,0.89566518,2824.8,2822.2,0.0106432]
[1769699958580,0.0106432,2825.5,2822.6,0.0106432]
[1769699958779,0.0106432,2825.5,2822.8,12.80644287]
[1769699958981,0.88476783,2825.6,2822.9,0.0106432]
[1769699959281,0.0106432,2825.0,2823.0,0.53504146]
[1769699959583,0.0106432,2825.1,2822.3,12.80644287]
[1769699959786,0.0106432,2824.5,2822.0,0.743]
[1769699960225,0.88514374,2824.4,2822.0,0.743]
[1769699960411,3.53984256,2825.0,2822.5,0.0106432]
[1769699960588,0.44247983,2824.9,2822.3,0.0106432]
[1769699960788,3.747,2824.8,2822.1,0.88586513]
[1769699961000,0.44247983,2824.9,2822.5,0.0106432]
[1769699961215,0.44247983,2824.9,2822.6,0.0106432]
[1769699961421,0.39823224,2824.8,2822.3,0.0106432]
[1769699961621,0.0106432,2824.4,2822.2,12.80644287]
[1769699961795,0.0106432,2824.9,2822.2,12.80644287]
[1769699961989,0.88495575,2825.0,2822.2,12.80644287]
[1769699962187,0.8850184,2824.8,2822.3,0.88580235]
[1769699962420,0.44357352,2824.7,2822.3,0.89644555]
[1769699962733,0.44357352,2824.7,2822.3,0.88580235]
[1769699962936,0.44357352,2824.7,2822.3,13.69224522]
[1769699963231,0.0106432,2824.5,2822.3,0.88580235]
[1769699963394,0.44357352,2824.7,2822.8,0.0106432]
[1769699963722,0.8850184,2824.8,2822.6,12.80644287]
[1769699963922,0.8850184,2824.8,2822.3,0.88580235]
[1769699964292,0.8850184,2824.8,2822.2,3.54320943]
[1769699964495,0.8850184,2824.8,2822.6,0.0106432]
[1769699964800,0.44357352,2824.7,2822.3,12.80644287]
[1769699965408,0.44357352,2824.7,2822.4,0.0106432]
[1769699965609,0.44357352,2824.7,2822.3,12.80644287]
[1769699965955,0.0106432,2826.5,2822.8,0.0106432]
[1769699966100,8.69623712,2826.7,2823.0,0.0106432]
[1769699966101,3.5388936,2825.8,2823.0,0.0106432]
[1769699966299,3.5388936,2825.8,2822.8,0.88564545]
[1769699966623,12.68496537,2825.7,2822.8,0.88564545]
[1769699966844,5.3693859,2825.6,2822.9,0.44282273]
[1769699967137,1.6223859,2825.6,2822.9,0.44282273]
[1769699967300,1.6223859,2825.6,2823.0,0.0106432]
[1769699967498,3.53882086,2826.0,2823.6,0.0106432]
[1769699967726,0.88442353,2826.7,2823.7,13.90235092]
[1769699967930,0.88442353,2826.7,2824.3,13.89170772]
[1769699968118,0.88442353,2826.7,2824.4,0.742]
[1769699968317,3.53769413,2826.8,2824.5,0.8851124]
[1769699968516,0.0106432,2826.6,2824.4,1.62713601]
[1769699968921,0.51059978,2826.7,2824.4,1.62713601]
[1769699969234,0.51059978,2826.7,2824.4,1.63777921]
[1769699969398,0.40482939,2826.6,2824.5,0.51783613]
[1769699969600,0.88420456,2827.4,2824.9,13.89170772]
[1769699970014,0.88420456,2827.4,2824.5,0.51783613]
[1769699970241,0.001,2825.6,2824.5,0.51783613]
[1769699970538,0.0106432,2827.3,2824.6,0.88508107]
[1769699970740,0.88420456,2827.4,2824.9,13.90235092]
[1769699971069,0.4420973,2827.3,2825.0,0.53464189]
[1769699971340,0.4420973,2827.3,2825.0,14.43699281]
[1769699971506,0.88420456,2827.4,2825.0,14.43699281]
[1769699971708,0.88420456,2827.4,2825.0,14.42634961]
[1769699971915,0.88420456,2827.4,2825.0,0.53464189]
[1769699972140,0.0106432,2827.1,2824.5,0.88509309]
[1769699972440,0.88432967,2827.0,2824.5,14.46566111]
[1769699972649,0.88432967,2827.0,2824.8,0.0106432]
[1769699972937,0.88432967,2827.0,2824.7,0.0106432]
[1769699973237,1.68022638,2827.0,2824.6,13.58056802]
[1769699973436,1.68022638,2827.0,2824.5,0.88509309]
[1769699974154,1.68022638,2827.0,2824.4,4.28244963]
[1769699974155,0.0106432,2826.9,2824.4,1.62712545]
[1769699974308,0.88439224,2826.8,2824.4,1.6271256]
[1769699974502,0.44219612,2826.7,2824.5,0.0106432]
[1769699974938,0.44219612,2826.7,2824.4,1.62714248]
[1769699975843,0.45283932,2826.7,2824.4,1.62714248]
[1769699976218,0.0106432,2826.3,2824.4,0.742]
[1769699976533,0.0106432,2825.3,2822.5,1.597]
[1769699976851,12.63972724,2825.7,2823.8,0.88533088]
[1769699976852,0.0106432,2825.4,2823.8,0.88533088]
[1769699977052,0.0106432,2825.4,2822.7,0.0106432]
[1769699977266,0.0106432,2825.4,2823.9,0.88527336]
[1769699977545,0.0106432,2826.6,2824.4,0.88511737]
[1769699977745,0.88458,2826.2,2824.4,0.88511737]
[1769699977907,0.88458,2826.2,2824.1,3.54093421]
[1769699978111,0.4529332,2826.1,2824.1,0.35409342]
[1769699978440,0.0106432,2825.9,2823.9,3.54119989]
[1769699978610,0.0106432,2825.9,2823.8,0.742]
[1769699978809,0.0106432,2825.9,2823.8,1.62731184]
[1769699979010,0.0106432,2825.7,2823.8,1.62731981]
[1769699979318,0.0106432,2825.7,2823.8,0.742]
[1769699979620,0.0106432,2825.7,2823.8,1.62732132]
[1769699979830,0.0106432,2825.7,2823.8,2.14420842]
[1769699980219,0.0106432,2825.8,2823.8,1.2588871]
[1769699980421,0.0106432,2825.4,2823.8,0.742]
[1769699981621,0.0106432,2824.9,2823.0,0.88558159]
[1769699981828,0.0106432,2824.7,2822.6,0.88569075]
[1769699982133,0.0106432,2824.3,2822.9,0.88561024]
[1769699982341,0.0106432,2824.8,2822.7,0.32246908]
[1769699982538,0.0106432,2824.8,2822.8,0.88563402]
[1769699982539,0.88504973,2824.7,2822.8,0.88563402]
[1769699983058,0.88504973,2824.7,2824.0,0.002]
[1769699983759,0.88504973,2824.7,2822.8,0.88563402]
[1769699984457,3.53952299,2825.3,2822.8,14.46620204]
[1769699984662,0.44349967,2825.2,2823.0,13.58056802]
[1769699985246,0.0106432,2825.0,2822.7,0.88565212]
[1769699985446,0.0106432,2825.0,2822.8,0.88564461]
[1769699985784,0.0106432,2825.0,2822.8,14.46621263]
[1769699985979,0.45414287,2825.2,2822.8,14.46621263]
[1769699986649,0.88492442,2825.1,2822.8,14.46621263]
[1769699986848,0.88479915,2825.5,2823.6,13.58056802]
[1769699987095,0.8846426,2826.0,2823.8,13.58056802]
[1769699987252,0.8846426,2826.0,2824.0,13.58056802]
[1769699987655,0.0106432,2825.6,2823.9,0.742]
[1769699987956,0.0106432,2825.4,2823.9,0.742]
[1769699988150,0.8846426,2826.0,2823.9,0.742]
[1769699988355,0.0106432,2825.7,2823.9,0.742]
[1769699988568,0.0106432,2825.5,2823.9,0.742]
[1769699988966,0.88483046,2825.4,2823.9,0.742]
[1769699989181,0.89547366,2825.4,2823.9,0.742]
[1769699989382,0.44347955,2825.3,2823.9,0.742]
[1769699989591,0.0106432,2825.2,2823.9,0.742]
[1769699990288,0.0106432,2824.5,2822.6,0.002]
[1769699990970,0.0106432,2824.3,2822.6,0.002]
[1769699991175,0.0106432,2824.0,2822.5,1e-08]
[1769699991354,0.0106432,2823.6,2822.5,1e-08]
[1769699991553,0.0106432,2823.6,2822.3,0.002]
[1769699992257,0.0106432,2823.8,2822.3,0.002]
[1769699992991,0.88530047,2823.9,2822.3,0.002]
[1769699993200,0.0106432,2823.6,2821.1,0.002]
[1769699993413,4.19071456,2823.8,2821.1,0.002]
[1769699994097,4.19071456,2823.8,2821.4,0.88607711]
[1769699994098,0.44371456,2823.8,2821.4,0.88607711]
[1769699994318,0.44371456,2823.8,2821.6,0.88602208]
[1769699994474,0.44371456,2823.8,2821.1,13.58256802]
[1769699994659,0.44371456,2823.8,2821.3,0.88609681]
[1769699994861,0.88536317,2823.7,2821.1,13.58256802]
[1769699995060,4.63236317,2823.7,2821.1,14.46874105]
[1769699995292,0.88536317,2823.7,2821.3,13.74239012]
[1769699995596,0.88536317,2823.7,2821.5,13.74239012]
[1769699995799,0.48705304,2823.6,2821.5,13.74239012]
[1769699996377,0.48705304,2823.6,2821.1,0.88817303]
[1769699996578,0.0106432,2823.5,2822.3,0.002]
[1769699996802,0.48705304,2823.6,2822.3,0.002]
[1769699997104,0.88542588,2823.5,2822.3,0.002]
[1769699997272,0.49141825,2823.4,2821.4,13.74239012]
[1769699997486,0.49141825,2823.4,2821.1,0.002]
[1769699997726,0.49141825,2823.4,2821.1,0.88817406]
[1769699997893,0.0106432,2823.3,2821.1,13.74439012]
[1769699998206,0.0106432,2823.3,2821.1,14.63056664]
[1769699998373,0.49141825,2823.4,2821.2,13.74239012]
[1769699999033,0.88548861,2823.3,2821.2,13.74239012]
[1769699999309,0.89613181,2823.3,2821.1,0.002]
[1769699999509,0.0106432,2823.1,2821.1,0.002]
[1769699999804,0.89613181,2823.3,2821.2,14.62852928]
[1769699999805,0.88548861,2823.3,2821.2,14.62852928]
[1769700000016,0.49188613,2823.2,2821.2,14.62852928]
[1769700000585,0.49188613,2823.2,2821.1,0.002]
[1769700000781,0.45252933,2823.2,2821.1,0.002]
[1769700001016,0.88555134,2823.1,2821.1,0.002]
[1769700001221,0.0106432,2822.8,2821.1,0.002]
[1769700001423,1.37318388,2822.8,2821.1,0.002]
[1769700001723,0.88555134,2823.1,2821.1,0.002]
[1769700002090,0.88555134,2823.1,2821.1,13.75503332]
[1769700002285,0.0106432,2822.9,2821.1,0.002]
[1769700002487,0.0106432,2822.7,2821.1,0.002]
[1769700002687,0.0106432,2822.1,2820.0,0.002]
[1769700002882,0.0106432,2821.7,2820.0,0.002]
[1769700003084,0.0106432,2821.5,2820.0,0.002]
[1769700003326,0.88602211,2821.6,2820.0,0.002]
[1769700003637,0.0106432,2821.4,2820.0,0.002]
[1769700003837,0.0106432,2821.2,2820.0,0.002]
[1769700004046,0.0106432,2821.0,2819.8,0.002]
[1769700004320,0.0106432,2821.2,2819.8,0.002]
[1769700004495,0.0106432,2821.0,2819.8,0.002]
[1769700004696,0.0106432,2820.8,2819.5,0.742]
[1769700004913,0.88630481,2820.7,2818.5,0.742]
[1769700005112,0.0106432,2820.6,2818.5,1.62897545]
[1769700005313,0.0106432,2820.4,2818.5,1.62899376]
[1769700005526,0.0106432,2820.5,2818.5,1.62899376]
[1769700006309,0.0106432,2820.5,2818.5,1.6289937]
[1769700006499,0.0106432,2820.2,2818.5,0.742]
[1769700007001,0.88655626,2819.9,2818.5,0.742]
[1769700007206,0.44434245,2819.8,2817.8,0.002]
[1769700007737,0.0106432,2819.7,2817.8,0.002]
[1769700008035,0.0106432,2819.5,2817.8,0.002]
[1769700008231,0.44434245,2819.8,2817.8,0.88919681]
[1769700008404,0.88655626,2819.9,2817.8,0.88919681]
[1769700008405,0.88655626,2819.9,2818.1,3.54848017]
[1769700008599,0.88655626,2819.9,2818.1,13.74239012]
[1769700008814,0.88655626,2819.9,2818.3,13.74239012]
[1769700009016,3.54622504,2820.2,2818.3,14.62944452]
[1769700009211,3.54622504,2820.2,2818.3,13.74239012]
[1769700009430,0.3652657,2820.1,2818.0,0.002]
[1769700009730,0.0106432,2819.7,2818.0,0.002]
[1769700009910,0.0106432,2819.4,2818.0,0.002]
[1769700010439,0.0106432,2819.2,2818.0,0.002]
[1769700010646,0.0106432,2818.8,2818.0,0.002]
[1769700010952,0.0106432,2818.4,2817.5,0.002]
[1769700011102,0.01064603,2818.0,2816.1,13.74239012]
[1769700011803,0.01064603,2817.8,2816.1,14.63013975]
[1769700012004,0.01064603,2817.8,2816.1,13.74239012]
[1769700012220,0.01064981,2817.2,2815.8,0.743]
[1769700012620,0.01064981,2816.8,2814.7,0.88817367]
[1769700012830,0.01064981,2816.4,2814.6,13.74239012]
[1769700013146,0.88775256,2816.1,2814.0,0.88841506]
[1769700013345,0.88775256,2816.1,2814.0,14.63080518]
[1769700013520,0.44494126,2816.0,2814.0,14.63080518]
[1769700013921,0.88775256,2816.1,2814.3,13.74239012]
[1769700014241,0.88727995,2817.6,2815.3,13.74239012]
[1769700014414,0.88727995,2817.6,2815.6,13.74239012]
[1769700015232,3.54905041,2817.7,2815.7,0.88787868]
[1769700015453,3.54905041,2817.7,2815.6,14.63029893]
[1769700015629,0.44505059,2817.6,2815.6,14.63029893]
[1769700015844,0.01420707,2817.4,2815.4,0.743]
[1769700016043,0.45925766,2817.6,2815.4,0.743]
[1769700016044,0.44505059,2817.6,2815.7,0.88787868]
[1769700016248,0.44505059,2817.6,2815.8,13.74239012]
[1769700017242,0.88731144,2817.5,2815.9,0.88781561]
[1769700018738,0.01420707,2818.1,2815.9,0.88781561]
[1769700018739,0.887154,2818.0,2815.9,14.6444128]
[1769700019069,13.60412037,2819.6,2817.4,13.74239012]
[1769700019070,0.88665058,2819.6,2817.4,13.74239012]
[1769700019277,3.54660235,2819.8,2817.7,13.74239012]
[1769700019436,0.01420707,2819.5,2817.6,0.88727995]
[1769700019640,3.54660235,2819.9,2817.7,14.2603301]
[1769700019936,0.01420707,2819.7,2817.7,14.2603301]
[1769700020565,3.56080942,2819.9,2817.7,14.2603301]
[1769700020940,0.01420707,2819.7,2817.7,14.2603301]
[1769700021141,0.01420707,2819.3,2817.7,14.2603301]
[1769700021469,0.88677639,2819.2,2817.8,1.47174267]
[1769700021672,0.88677639,2819.2,2817.8,1.47175399]
[1769700021969,0.88677639,2819.2,2817.8,0.58453804]
[1769700022164,0.88677639,2819.2,2817.8,1.47174542]
[1769700022758,0.88677639,2819.2,2817.8,0.58453804]
[1769700023069,0.90098346,2819.2,2817.5,1.63028355]
[1769700023372,0.90098346,2819.2,2817.5,0.743]
[1769700023870,0.90098346,2819.2,2817.5,15.37269706]
[1769700023871,0.88677639,2819.2,2817.5,15.37269706]
[1769700024037,0.001,2819.6,2817.9,13.74239012]
[1769700024242,0.001,2819.6,2818.1,13.74239012]
[1769700024968,0.88605351,2821.5,2819.0,13.74239012]
[1769700025168,0.88605351,2821.5,2819.2,13.74239012]
[1769700025169,0.01420707,2821.0,2819.2,13.74239012]
[1769700025347,0.01420707,2820.7,2819.2,13.74239012]
[1769700025548,0.01420707,2820.7,2819.2,14.62915072]
[1769700025870,0.01420707,2820.3,2819.1,0.743]
[1769700026170,0.01420707,2820.5,2819.1,1.62978742]
[1769700026358,0.01420707,2820.1,2819.1,0.743]
[1769700026534,0.01420707,2819.9,2819.1,0.743]
[1769700026743,0.01420707,2819.6,2818.2,0.743]
[1769700026937,0.01420707,2819.6,2818.2,1.63007061]
[1769700027272,0.01420707,2820.2,2818.5,13.52564615]
[1769700027436,3.54522835,2820.7,2818.6,14.41261131]
[1769700027649,0.01420707,2820.6,2818.6,14.41261131]
[1769700027983,0.01420707,2820.2,2818.6,14.41261131]
[1769700028155,0.01420707,2820.4,2818.6,14.41261131]
[1769700029979,0.88604205,2821.6,2819.3,13.52564615]
[1769700030183,0.35583619,2821.5,2819.4,0.743]
[1769700030483,0.01772767,2821.1,2819.4,0.743]
[1769700030681,0.01420707,2822.3,2819.4,14.28637382]
[1769700030890,0.01420707,2823.4,2820.1,13.52564615]
[1769700031185,0.89977087,2823.1,2820.7,13.52564615]
[1769700031351,0.01420707,2823.1,2821.1,13.52564615]
[1769700031552,0.01772767,2822.5,2821.0,0.88621056]
[1769700031766,0.01772767,2822.7,2820.9,0.88622246]
[1769700031954,0.01772767,2824.2,2821.5,13.52564615]
[1769700032290,0.88515325,2824.4,2822.1,13.54337382]
[1769700032457,0.01772767,2825.0,2822.2,14.43245599]
[1769700032864,0.88479915,2825.5,2822.9,13.67172832]
[1769700033068,0.9024476,2825.8,2823.1,13.67172832]
[1769700033258,0.01772767,2824.9,2823.2,0.743]
[1769700033460,0.01772767,2824.8,2823.3,1.62848861]
[1769700033680,0.01772767,2824.4,2823.3,0.743]
[1769700033883,0.01772767,2824.9,2823.3,0.743]
[1769700034082,3.5378686,2826.6,2823.3,14.41472832]
[1769700034251,0.01772767,2827.0,2823.3,14.41472832]
[1769700034252,0.01772767,2826.0,2823.5,13.67172832]
[1769700034454,0.88445482,2826.6,2824.1,13.67172832]
[1769700034704,0.88445482,2826.6,2824.3,13.67172832]
[1769700034881,0.01772767,2826.7,2824.4,14.41472832]
[1769700035055,0.01772767,2827.8,2825.4,13.67172832]
[1769700035255,0.88404823,2827.9,2825.5,14.43245599]
[1769700035490,0.88404823,2827.9,2825.6,14.55649615]
[1769700035668,0.88404823,2827.9,2825.7,13.68945599]
[1769700035867,0.01772767,2828.7,2826.3,13.67172832]
[1769700036067,0.01772767,2828.7,2826.2,0.01772767]
[1769700036068,0.01772767,2829.7,2826.8,13.92302629]
[1769700036267,0.0197223,2830.0,2827.6,0.01772767]
[1769700036468,0.90121355,2829.7,2826.0,0.077565]
[1769700036684,0.01772767,2829.5,2826.8,0.01772767]
[1769700036855,0.01772767,2829.5,2826.6,13.68945599]
[1769700036856,0.01772767,2829.0,2826.6,13.67172832]
[1769700037055,0.90121355,2829.7,2826.9,0.01772767]
[1769700037056,0.01772767,2829.6,2826.9,0.01772767]
[1769700037256,0.01772767,2828.8,2826.6,13.67172832]
[1769700037577,0.88373572,2828.9,2826.9,0.88436096]
[1769700037893,0.01772767,2828.8,2826.9,0.88436096]
[1769700038098,0.01772767,2828.5,2826.9,0.88436096]
[1769700038395,0.01772767,2828.5,2826.8,0.743]
[1769700038396,0.01772767,2828.3,2826.8,0.743]
[1769700038595,0.01772767,2828.5,2826.8,1.62737279]
[1769700038758,0.01772767,2828.1,2826.8,0.743]
[1769700039363,0.01772767,2827.3,2825.2,0.742]
[1769700039594,0.01772767,2828.2,2825.7,0.01772767]
[1769700040100,0.01772767,2828.2,2825.6,0.01772767]
[1769700040411,0.01772767,2828.3,2825.5,13.67172832]
[1769700040616,0.01772767,2828.1,2825.5,13.67172832]
[1769700040818,0.01772767,2827.5,2825.2,0.742]
[1769700040982,0.01772767,2827.4,2825.2,0.742]
[1769700041386,0.88395445,2828.2,2825.5,0.01772767]
[1769700041696,0.88395445,2828.2,2826.2,0.01772767]
[1769700041880,0.88395445,2828.2,2826.3,0.742]
[1769700042076,0.0197223,2830.0,2826.9,0.01772767]
[1769700042283,3.53431823,2829.6,2826.9,13.67172832]
[1769700042479,0.01772767,2829.4,2826.4,0.01772767]
[1769700042681,0.01772767,2829.2,2826.3,0.742]
[1769700043010,0.01772767,2828.8,2826.3,0.742]
[1769700043224,0.01772767,2828.8,2826.4,0.01772767]
[1769700043516,0.88361078,2829.3,2826.8,0.01772767]
[1769700043670,1.71632337,2829.3,2827.0,0.01772767]
[1769700043871,3.53444314,2829.5,2826.8,0.01772767]
[1769700043872,0.88354833,2829.5,2826.8,13.68945599]
[1769700044305,0.901276,2829.5,2826.8,13.67172832]
[1769700044801,0.01772767,2829.1,2826.5,0.88448611]
[1769700045412,0.88382945,2828.6,2826.4,3.53794445]
[1769700045713,0.88382945,2828.6,2826.5,0.01772767]
[1769700045881,0.88382945,2828.6,2826.6,0.35556721]
[1769700046084,0.88382945,2828.6,2826.7,0.002]
[1769700046515,3.53460923,2829.2,2826.9,0.01772767]
[1769700046815,4.19089197,2829.8,2827.4,13.68945599]
[1769700046816,0.88348588,2829.7,2827.4,13.68945599]
[1769700047112,0.88348588,2829.7,2827.6,0.01772767]
[1769700047610,0.88348588,2829.7,2827.7,0.88411076]
[1769700047810,4.61372616,2829.8,2827.7,0.88411076]
[1769700047811,0.65703763,2829.8,2828.3,13.68945599]
[1769700048009,0.65703763,2829.8,2828.6,0.01772767]
[1769700048213,0.65703763,2829.8,2828.7,0.741]
[1769700049424,0.01772767,2832.3,2828.8,0.01772767]
[1769700049607,0.01772767,2832.3,2829.3,0.88361078]
[1769700049809,3.53182125,2831.5,2829.3,0.88361078]
[1769700049985,0.88278558,2832.0,2829.9,0.01772767]
[1769700050204,0.01772767,2833.2,2829.4,0.01772767]
[1769700050205,0.88258137,2832.6,2830.6,0.01772767]
[1769700050446,0.001,2832.7,2831.7,0.18369844]
[1769700050631,0.71525523,2834.9,2831.8,0.741]
[1769700050814,3.52795907,2834.7,2831.9,0.01772767]
[1769700051032,1.16678925,2834.9,2832.9,0.01772767]
[1769700051226,0.89959299,2834.9,2833.0,0.741]
[1769700051558,0.01772767,2834.6,2831.9,13.67172832]
[1769700051782,0.88202088,2834.4,2832.6,0.741]
[1769700051922,0.88202088,2834.4,2832.6,1.62357454]
[1769700052247,0.46051088,2834.3,2832.6,0.741]
[1769700052471,0.01772767,2834.1,2832.6,0.741]
[1769700052613,0.01772767,2834.1,2831.7,0.18369844]
[1769700052614,0.01772767,2833.9,2831.8,0.88280592]
[1769700052811,0.01772767,2833.5,2831.7,0.18369844]
[1769700053028,0.01772767,2833.1,2831.7,0.18369844]
[1769700053234,0.01772767,2833.8,2831.7,0.18369844]
[1769700053433,0.01772767,2832.8,2830.6,0.741]
[1769700053710,0.88242561,2833.1,2830.7,0.88317377]
[1769700054068,0.88241452,2833.2,2830.7,0.88317377]
[1769700054356,0.18372515,2833.0,2830.8,0.51745965]
[1769700054912,3.52752287,2834.9,2832.5,0.01772767]
[1769700055143,3.52752287,2834.9,2832.6,0.01772767]
[1769700055144,3.34322649,2834.9,2832.6,0.01772767]
[1769700055336,0.88164762,2835.6,2832.8,0.01772767]
[1769700055547,7.71843523,2835.3,2831.9,0.55930996]
[1769700055759,7.71843523,2835.3,2831.3,0.01772767]
[1769700055760,0.01772767,2834.6,2831.6,0.88289306]
[1769700056061,0.01772767,2834.1,2831.7,0.4432193]
[1769700056215,0.01772767,2833.9,2831.7,0.4432193]
[1769700056411,0.01772767,2833.7,2831.5,0.88290487]
[1769700056618,0.89949967,2835.2,2832.4,13.6330176]
[1769700056858,0.89949967,2835.2,2831.9,0.25129797]
[1769700057017,0.01772767,2834.9,2831.8,0.01772767]
[1769700057223,0.01058743,2834.5,2831.6,0.25129797]
[1769700057418,0.01058743,2834.5,2831.8,0.01058743]
[1769700057618,0.88202088,2834.4,2832.0,0.88276836]
[1769700057819,0.88180311,2835.1,2832.1,0.01058743]
[1769700058043,0.01058743,2834.6,2832.0,0.88276836]
[1769700058245,0.01058743,2834.4,2832.0,0.88276836]
[1769700058654,0.01058743,2834.4,2832.2,0.01058743]
[1769700058959,0.03030973,2835.7,2832.8,0.01058743]
[1769700059120,0.01058743,2835.5,2832.9,0.01058743]
[1769700059448,0.01058743,2835.5,2832.6,0.01058743]
[1769700059655,0.01058743,2835.1,2832.5,0.88261253]
[1769700059873,0.01058743,2835.0,2832.5,0.88261253]
[1769700060214,0.01058743,2834.8,2832.5,0.88261253]
[1769700060334,0.01058743,2834.6,2832.6,0.44130627]
[1769700060829,0.01058743,2834.1,2832.6,0.44130627]
[1769700061142,0.01058743,2834.1,2832.5,0.88261253]
[1769700061143,0.01058743,2835.3,2832.5,0.88261253]
[1769700061449,0.0197223,2835.7,2833.0,0.01058817]
[1769700061621,0.0197223,2835.7,2833.6,0.8822699]
[1769700061821,0.01350816,2835.7,2834.4,0.01058817]
[1769700062027,3.99604368,2837.8,2835.1,0.01058817]
[1769700062028,0.4721252,2837.8,2835.1,0.01058817]
[1769700062280,3.52240647,2839.0,2834.4,0.75058817]
[1769700062281,0.01058817,2837.7,2834.4,0.75058817]
[1769700062561,0.01058817,2836.4,2833.7,0.44219377]
[1769700062895,0.89282632,2837.0,2833.9,0.01058817]
[1769700063021,0.01058817,2836.4,2834.0,0.66028425]
[1769700063222,0.01058817,2835.7,2833.5,3.52907961]
[1769700063428,0.44176765,2836.9,2833.9,0.01058817]
[1769700063740,0.88136788,2836.5,2833.9,0.8821765]
[1769700064134,0.44176765,2836.9,2833.9,0.8821765]
[1769700064135,0.44176765,2836.9,2834.3,0.01058817]
[1769700064336,0.001,2837.0,2835.4,0.01058817]
[1769700064534,0.001,2837.0,2835.2,0.01058817]
[1769700064535,0.001,2837.0,2835.2,0.74]
[1769700064784,0.001,2837.0,2835.3,0.2335703]
[1769700065076,0.001,2837.0,2835.2,0.74]
[1769700065330,0.88073137,2838.6,2835.9,0.01058817]
[1769700065466,0.88073137,2838.6,2836.3,0.01058817]
[1769700065667,1.3210903,2838.6,2835.9,0.01058817]
[1769700065871,1.3210903,2838.6,2836.2,0.8814611]
[1769700066527,1.3210903,2838.6,2835.2,0.74]
[1769700066528,0.01058817,2837.9,2835.2,0.74]
[1769700066669,0.01058817,2838.2,2836.1,0.88148913]
[1769700066869,0.01058817,2837.8,2835.7,0.88159515]
[1769700067106,0.01058817,2837.8,2835.7,0.44082792]
[1769700067311,0.01058817,2838.3,2836.0,3.52596875]
[1769700067468,1.3210903,2838.6,2836.1,0.88148236]
[1769700067670,1.33167847,2838.6,2836.1,0.88148236]
[1769700067910,0.88073137,2838.6,2836.2,0.01058817]
[1769700068106,0.88073137,2838.6,2836.0,3.53657875]
[1769700068318,0.88073137,2838.6,2836.4,0.01058817]
[1769700068471,3.52183475,2839.5,2836.4,0.01058817]
[1769700068472,0.89099386,2839.7,2836.7,0.01058817]
[1769700068674,0.88025069,2840.1,2837.6,0.01058817]
[1769700068925,0.44012535,2840.0,2837.5,0.739]
[1769700069130,3.09797231,2840.2,2837.5,0.739]
[1769700069273,0.88025069,2840.1,2837.6,0.01058817]
[1769700069473,0.88025069,2840.1,2837.5,0.739]
[1769700069474,0.01058817,2840.0,2837.5,0.739]
[1769700069690,0.88018871,2840.3,2837.5,0.739]
[1769700069901,0.01058817,2840.0,2837.6,0.88102621]
[1769700070100,0.44114776,2840.2,2837.7,0.2335703]
[1769700070302,0.89958584,2841.4,2838.4,0.01058817]
[1769700070509,0.89958584,2841.4,2838.6,0.01058817]
[1769700070510,0.0197223,2841.4,2838.6,0.01058817]
[1769700070681,0.0197223,2841.4,2838.7,0.01058817]
[1769700070882,0.89957035,2841.4,2838.8,0.01058817]
[1769700071211,0.89957035,2841.4,2838.0,0.01058817]
[1769700071212,0.01058817,2840.0,2837.5,3.52410487]
[1769700071389,0.001,2838.4,2837.7,0.44051311]
[1769700071604,0.01058817,2840.6,2837.8,0.2335703]
[1769700071815,0.01058817,2840.6,2838.3,0.88080893]
[1769700071816,0.89068897,2840.6,2838.3,0.88080893]
[1769700072187,0.01058817,2840.4,2838.2,0.88082403]
[1769700072520,7.71843523,2840.4,2838.1,0.88084669]
[1769700072819,0.79520055,2840.3,2838.2,0.88081958]
[1769700073115,0.01058817,2840.5,2838.2,0.88081958]
[1769700073315,0.01058817,2840.3,2838.2,0.88081958]
[1769700073516,0.01058817,2840.5,2838.2,0.88081958]
[1769700073714,0.01058817,2840.1,2838.2,0.88081958]
[1769700073916,0.88028169,2840.0,2838.2,1.67358287]
[1769700074415,0.88026699,2840.1,2838.2,0.88081524]
[1769700075118,0.01058817,2840.0,2838.2,0.88082439]
[1769700075415,3.53017825,2841.3,2838.2,0.88082439]
[1769700075622,0.88006656,2840.7,2838.2,0.89141256]
[1769700075806,0.88006656,2840.7,2838.4,0.8807779]
[1769700076007,3.5192454,2841.6,2838.4,0.89136607]
[1769700076008,0.8995853,2841.4,2838.4,0.89136607]
[1769700076210,0.0197223,2841.4,2839.0,0.01058817]
[1769700076521,0.0197223,2841.4,2838.5,0.2335703]
[1769700076522,0.01058817,2841.1,2838.5,0.2335703]
[1769700076708,0.89957249,2841.4,2839.0,0.01058817]
[1769700077015,0.89958086,2841.4,2838.8,13.6330176]
[1769700077214,0.01058817,2840.9,2838.4,0.8807779]
[1769700077531,0.01058817,2840.7,2838.4,0.8807779]
[1769700078020,0.87990989,2841.2,2838.4,0.89136607]
[1769700078389,0.89049806,2841.2,2838.5,0.01058817]
[1769700078817,0.87990989,2841.2,2838.5,0.01058817]
[1769700078986,0.45054312,2841.1,2838.4,0.8807779]
[1769700079192,0.01058817,2840.8,2838.4,0.8807779]
[1769700079389,0.01058817,2840.8,2837.6,3.52398519]
[1769700079390,0.01058817,2839.9,2837.5,0.24276337]
[1769700079616,0.01058817,2840.2,2837.5,0.24276337]
[1769700079819,0.88043669,2839.5,2837.5,1.12380185]
[1769700080129,0.01058817,2839.3,2836.5,0.738]
[1769700080313,0.01058817,2839.3,2836.9,3.52494429]
[1769700080500,0.01058817,2839.3,2836.9,3.52495909]
[1769700080823,0.01058817,2839.2,2837.1,0.88115977]
[1769700081024,0.01058817,2838.7,2837.0,0.88119192]
[1769700081225,0.01058817,2838.3,2835.3,0.24258328]
[1769700081522,0.01058817,2837.9,2835.3,0.24258328]
[1769700081694,0.01058817,2837.6,2835.3,0.24258328]
[1769700081896,0.01058817,2837.6,2835.4,0.88170981]